bitfinex/quotes_ETHUSD_20260306
["timestamp","ask_amount","ask_price","bid_price","bid_amount"]
[1772770822791,0.6740805,2078.0,2077.6,0.67093989]
[1772770824578,0.6740805,2078.0,2077.6,1.87419998]
[1772770825613,0.6740805,2078.0,2077.7,0.67093989]
[1772770826508,1.87716342,2078.0,2077.7,0.67093989]
[1772770830528,0.6740805,2078.0,2077.7,0.67093989]
[1772770830906,0.001,2077.8,2077.7,0.67093989]
[1772770833225,0.001,2077.8,2077.6,1.20326009]
[1772770833406,0.001,2077.8,2077.6,1.82097894]
[1772770840710,0.001,2077.8,2077.7,1.344]
[1772770844158,0.001,2077.8,2077.5,0.0011]
[1772770844159,0.64772056,2077.8,2077.5,0.0011]
[1772770845016,1.20424888,2077.8,2077.5,0.0011]
[1772770845236,0.64672056,2077.7,2077.5,0.0011]
[1772770847410,0.64672056,2077.6,2077.2,0.0011]
[1772770847725,0.64672056,2077.6,2077.2,1.8223603]
[1772770847925,0.64672056,2077.6,2077.2,0.0011]
[1772770848841,0.64672056,2077.6,2077.2,1.20464031]
[1772770849037,0.64672056,2077.6,2077.2,1.82235916]
[1772770849740,0.64672056,2077.6,2077.3,0.61771885]
[1772770850145,1.85003733,2077.6,2077.3,0.61771885]
[1772770850830,0.64672056,2077.6,2077.3,0.61771885]
[1772770851036,1.85003512,2077.6,2077.3,0.61771885]
[1772770851248,1.85003512,2077.6,2077.2,1.20463761]
[1772770851415,1.85003512,2077.6,2077.2,1.82235646]
[1772770851831,0.64672056,2077.6,2077.2,1.82235646]
[1772770853552,0.64672056,2077.6,2077.3,0.61771885]
[1772770853756,0.001,2077.8,2077.4,0.61771885]
[1772770855922,0.001,2077.8,2077.5,1.82108828]
[1772770858456,0.001,2077.8,2077.4,0.0011]
[1772770858457,0.64772056,2077.8,2077.4,0.0011]
[1772770859732,0.64772056,2077.8,2077.4,1.20452312]
[1772770859931,0.64772056,2077.8,2077.4,1.81079764]
[1772770860266,0.64772056,2077.8,2077.4,1.20452312]
[1772770860561,0.001,2077.8,2077.5,0.60627452]
[1772770861141,0.63955039,2077.8,2077.5,0.60627452]
[1772770861357,0.63855039,2077.7,2077.4,0.0011]
[1772770861542,0.63855039,2077.7,2077.4,1.20452424]
[1772770862261,0.63855039,2077.7,2077.4,0.0011]
[1772770863162,0.63855039,2077.6,2077.4,0.0011]
[1772770863737,0.001,2077.8,2077.4,0.60737452]
[1772770864658,0.001,2077.8,2077.5,1.80964395]
[1772770864863,0.63955039,2077.8,2077.5,0.60627452]
[1772770865573,0.63955039,2077.8,2077.4,1.20448347]
[1772770866568,0.63955039,2077.8,2077.4,0.0011]
[1772770866869,0.63855039,2077.7,2077.4,1.20451795]
[1772770867468,0.63855039,2077.7,2077.4,1.81079247]
[1772770867640,0.001,2077.8,2077.5,0.60627452]
[1772770868152,0.001,2077.8,2077.7,0.0011]
[1772770868544,0.63955039,2077.8,2077.7,0.0011]
[1772770869174,0.63855039,2077.7,2077.5,0.0011]
[1772770870942,0.001,2077.8,2077.5,0.0011]
[1772770871645,0.63955039,2077.8,2077.5,0.0011]
[1772770872171,1.84274778,2077.8,2077.5,0.0011]
[1772770873069,0.63955039,2077.8,2077.5,0.0011]
[1772770874340,0.001,2077.8,2077.5,0.60737452]
[1772770874852,0.63955039,2077.8,2077.5,0.60737452]
[1772770875266,0.63955039,2077.8,2077.5,1.81071578]
[1772770876439,0.001,2077.8,2077.6,0.60627452]
[1772770877569,0.001,2077.8,2077.6,1.80958357]
[1772770877870,0.001,2077.8,2077.6,0.60627452]
[1772770879245,0.001,2077.8,2077.5,1.81070572]
[1772770879578,0.63955039,2077.8,2077.5,0.60737452]
[1772770880070,0.63955039,2077.8,2077.5,0.0011]
[1772770881176,0.63955039,2077.8,2077.7,0.0011]
[1772770881346,1.84274607,2077.8,2077.7,0.0011]
[1772770884547,0.63955039,2077.8,2077.7,0.0011]
[1772770884876,0.001,2077.8,2077.7,0.0011]
[1772770887150,0.63955039,2077.8,2077.5,0.0011]
[1772770888788,4.81234226,2078.0,2077.6,0.60627452]
[1772770888789,0.63855039,2078.0,2077.6,0.60627452]
[1772770891382,0.63855039,2078.0,2077.6,1.80955624]
[1772770891746,1.84163491,2078.0,2077.6,1.80955624]
[1772770892080,1.84163491,2078.0,2077.6,0.60627452]
[1772770893183,1.84163491,2078.0,2077.7,0.0011]
[1772770893356,0.001,2077.8,2077.7,0.0011]
[1772770894485,0.62320456,2077.8,2077.5,0.0011]
[1772770895985,0.62220456,2077.7,2077.5,0.0011]
[1772770898182,1.82549002,2077.7,2077.5,0.0011]
[1772770904270,0.62220456,2077.7,2077.5,0.0011]
[1772770904664,1.82546711,2077.7,2077.5,0.0011]
[1772770906195,4.81380871,2077.8,2076.9,0.0011]
[1772770906196,0.62220456,2077.4,2076.9,0.0011]
[1772770907885,1.20336943,2077.5,2076.9,0.64243226]
[1772770908091,1.82557399,2077.5,2076.9,0.64243226]
[1772770908465,0.62220456,2077.4,2077.0,0.64133226]
[1772770909898,0.62220456,2077.4,2076.9,0.64243226]
[1772770910870,0.62220456,2077.2,2076.9,0.0011]
[1772770912774,0.62220456,2077.6,2076.9,0.64243226]
[1772770913192,0.62220456,2077.7,2076.9,0.64243226]
[1772770915700,0.62220456,2077.7,2077.1,0.64133226]
[1772770916893,0.62220456,2077.7,2077.1,0.64243226]
[1772770917172,0.001,2077.5,2077.1,0.64243226]
[1772770918102,0.001,2077.5,2077.3,0.64133226]
[1772770918691,0.62320456,2077.5,2077.1,1.20469486]
[1772770918891,0.62320456,2077.5,2077.2,0.64133226]
[1772770919694,0.001,2077.5,2077.2,0.64133226]
[1772770920005,0.6178418,2077.8,2077.3,1.20348529]
[1772770920186,0.6178418,2077.8,2077.3,0.60138559]
[1772770922718,1.82106901,2077.8,2077.3,1.20344794]
[1772770923018,1.82106901,2077.8,2077.4,0.60138559]
[1772770923222,0.6168418,2077.7,2077.3,1.80483353]
[1772770925516,0.6178418,2077.8,2077.4,0.60138559]
[1772770925899,0.6168418,2077.7,2077.4,0.60138559]
[1772770926196,1.8210418,2077.8,2077.4,0.60138559]
[1772770926596,0.6168418,2077.7,2077.4,0.60138559]
[1772770927613,0.6168418,2077.6,2077.2,0.60138559]
[1772770928789,0.6168418,2077.6,2077.5,0.0011]
[1772770929589,1.82015331,2077.6,2077.5,0.0011]
[1772770930015,0.6168418,2077.5,2077.3,0.0011]
[1772770931430,0.6168418,2077.5,2077.1,0.0011]
[1772770931722,1.82026916,2077.4,2077.1,0.0011]
[1772770932030,0.6168418,2077.6,2077.1,0.60248559]
[1772770933696,1.82015497,2077.6,2077.2,1.80492882]
[1772770933890,1.82015497,2077.6,2077.2,0.60138559]
[1772770934624,0.6168418,2077.5,2077.1,0.0011]
[1772770935818,0.6168418,2077.4,2077.1,0.0011]
[1772770936217,1.20334436,2077.6,2077.1,0.60248559]
[1772770936403,0.6168418,2077.5,2077.1,0.60248559]
[1772770937326,0.6168418,2077.7,2077.1,0.60248559]
[1772770937556,1.82104461,2077.8,2077.1,0.60248559]
[1772770938404,0.6168418,2077.7,2077.3,0.60138559]
[1772770939018,0.001,2077.8,2077.3,0.60138559]
[1772770939332,0.6168418,2077.7,2077.3,0.60138559]
[1772770941240,0.6168418,2077.7,2077.5,0.0011]
[1772770942837,1.82009699,2077.7,2077.5,0.0011]
[1772770943142,0.6168418,2077.6,2077.5,0.0011]
[1772770943515,1.82015331,2077.6,2077.5,0.0011]
[1772770944338,0.6168418,2077.6,2077.5,0.0011]
[1772770945835,1.82015331,2077.6,2077.5,0.0011]
[1772770946836,0.6168418,2077.5,2077.3,0.0011]
[1772770948918,1.82021545,2077.5,2077.3,0.0011]
[1772770949939,0.6168418,2077.5,2077.3,0.0011]
[1772770950137,1.20342393,2077.5,2077.1,0.0011]
[1772770950319,0.55877177,2077.5,2077.2,0.58356386]
[1772770950727,1.76214259,2077.5,2077.2,0.58356386]
[1772770953045,1.76214259,2077.5,2077.1,0.58466386]
[1772770953247,1.76214259,2077.5,2077.4,0.0011]
[1772770953627,1.76314259,2077.5,2077.4,0.0011]
[1772770954263,1.76314259,2077.5,2077.1,0.58466386]
[1772770954264,0.55877177,2077.4,2077.1,0.0011]
[1772770954918,0.55877177,2077.4,2076.9,0.0011]
[1772770954919,1.20348529,2077.3,2076.9,0.0011]
[1772770955119,0.55877177,2077.2,2076.9,0.0011]
[1772770957667,0.55877177,2077.0,2076.9,0.0011]
[1772770958449,0.55877177,2077.0,2076.8,0.0011]
[1772770958450,0.55877177,2077.0,2076.6,0.0011]
[1772770958629,0.55877177,2077.0,2076.4,0.0011]
[1772770960341,0.55877177,2076.8,2076.4,0.0011]
[1772770963066,0.55877177,2077.4,2076.4,0.58466386]
[1772770963254,0.55877177,2077.2,2076.4,0.58466386]
[1772770965043,0.55877177,2077.0,2076.6,0.0011]
[1772770965366,0.55877177,2077.0,2076.6,0.58466386]
[1772770965549,1.20360117,2077.1,2076.6,0.58466386]
[1772770965750,1.76332023,2077.2,2076.6,0.58466386]
[1772770965945,0.55977177,2077.2,2076.6,0.58466386]
[1772770966263,1.76332243,2077.2,2076.6,0.58466386]
[1772770969853,0.55877177,2077.1,2076.7,1.203833]
[1772770970060,0.55877177,2077.1,2076.7,1.78739686]
[1772770971450,0.55877177,2077.1,2076.8,0.58356386]
[1772770972454,0.001,2077.2,2076.9,0.58356386]
[1772770973154,0.55977177,2077.2,2076.9,0.58356386]
[1772770973612,0.001,2077.2,2076.9,0.58356386]
[1772770973785,0.001,2077.5,2077.0,0.58356386]
[1772770974078,0.001,2077.5,2076.7,4.81528119]
[1772770974079,0.55977177,2077.5,2076.7,1.20379829]
[1772770974249,0.55977177,2077.5,2076.7,1.78736215]
[1772770974449,0.55877177,2077.3,2076.8,0.58356386]
[1772770976861,1.76230163,2077.3,2076.8,1.78732736]
[1772770977061,1.76230163,2077.3,2076.9,0.58356386]
[1772770977761,0.001,2077.0,2076.9,0.58356386]
[1772770978786,0.001,2077.0,2076.8,0.0011]
[1772770979291,0.001,2077.0,2076.8,1.78843869]
[1772770979478,0.55977177,2077.0,2076.8,0.0011]
[1772770980400,0.55977177,2077.0,2076.6,0.0011]
[1772770982410,0.51879707,2076.9,2076.6,0.0011]
[1772770982708,0.51879707,2076.9,2076.4,0.0011]
[1772770983004,1.20471634,2077.0,2076.1,0.0011]
[1772770983005,0.51879707,2076.7,2076.1,0.0011]
[1772770984472,0.51879707,2076.5,2076.1,0.0011]
[1772770986001,0.51879707,2076.5,2075.6,1.73813308]
[1772770986196,0.51879707,2076.5,2075.6,1.20443007]
[1772770986497,0.51879707,2076.3,2075.7,0.53370301]
[1772770988699,0.51879707,2076.1,2075.5,0.53370301]
[1772770990805,1.72297798,2076.1,2076.0,0.0011]
[1772770990970,0.51879707,2076.0,2075.8,0.0011]
[1772770992709,1.20429693,2075.9,2075.8,0.0011]
[1772770994106,1.723094,2075.9,2075.8,0.0011]
[1772770998633,2.28132616,2076.4,2075.8,0.0011]
[1772770998634,1.204665,2077.0,2076.6,1.03255527]
[1772770998784,0.51879707,2076.6,2075.8,1.83480301]
[1772770998983,0.51879707,2076.6,2075.8,0.53480301]
[1772770999378,0.51879707,2076.6,2075.9,0.53370301]
[1772770999583,1.80761551,2076.6,2075.9,0.53370301]
[1772770999908,0.51879707,2076.5,2075.9,0.53370301]
[1772771000297,1.14279985,2076.5,2075.9,0.53370301]
[1772771001392,3.83179413,2076.5,2076.0,0.53370301]
[1772771002315,3.83179413,2076.5,2075.9,1.20427617]
[1772771002316,3.20779135,2076.5,2076.1,0.53480301]
[1772771002501,0.001,2076.4,2076.1,0.53480301]
[1772771003390,0.001,2076.4,2076.3,0.53370301]
[1772771005815,0.001,2076.4,2076.3,1.73776793]
[1772771006613,0.001,2076.4,2076.3,0.53370301]
[1772771006791,0.001,2076.4,2076.3,1.73776793]
[1772771007497,0.001,2076.4,2076.3,0.53370301]
[1772771007699,0.001,2076.4,2076.1,1.73898044]
[1772771007903,0.001,2076.4,2076.2,0.53370301]
[1772771011350,0.001,2076.4,2076.2,1.73782461]
[1772771013334,0.001,2076.4,2076.3,0.79147645]
[1772771019451,1.42563307,2076.4,2076.1,0.0011]
[1772771019645,1.42563307,2076.4,2076.1,1.20527734]
[1772771019949,1.42563307,2076.4,2076.1,1.99675379]
[1772771020120,0.62500278,2076.4,2076.1,1.99675379]
[1772771020321,0.62500278,2076.4,2076.2,0.79147645]
[1772771021549,0.62500278,2076.4,2076.2,1.99556831]
[1772771021950,0.62500278,2076.4,2076.3,0.79147645]
[1772771024521,0.62500278,2076.4,2076.3,1.99554137]
[1772771025364,0.31016412,2076.4,2076.3,1.99554137]
[1772771025653,1.17673351,2077.0,2076.4,0.79147645]
[1772771025853,1.493,2076.9,2076.4,0.79147645]
[1772771026425,1.493,2076.9,2076.6,0.79147645]
[1772771026946,1.17673351,2077.0,2076.6,0.79147645]
[1772771026947,1.493,2076.8,2076.6,0.79147645]
[1772771028843,1.493,2076.8,2076.6,1.99533407]
[1772771030557,0.37610322,2077.0,2076.7,0.79147645]
[1772771030760,1.493,2076.9,2076.7,1.99526113]
[1772771032059,1.86910322,2077.0,2076.8,0.79147645]
[1772771033153,0.80063029,2077.1,2076.8,1.99520745]
[1772771034739,1.18020539,2077.0,2076.9,0.79147645]
[1772771034924,2.00411717,2077.3,2076.9,0.79147645]
[1772771035131,1.494,2077.2,2077.0,0.61478917]
[1772771037330,3.49820163,2077.2,2076.9,0.61905336]
[1772771037561,0.80063029,2077.1,2076.7,1.82284227]
[1772771037767,0.80063029,2077.1,2076.8,0.6165843]
[1772771038059,2.29463029,2077.2,2076.8,0.6165843]
[1772771039470,2.29463029,2077.2,2076.8,1.82031263]
[1772771039674,0.001,2076.9,2076.8,1.82031263]
[1772771042085,0.78511326,2077.4,2076.9,0.60628823]
[1772771042305,1.495,2077.5,2076.9,0.60628823]
[1772771043158,2.28011326,2077.5,2076.9,0.60628823]
[1772771043584,0.78611326,2077.5,2076.9,0.60628823]
[1772771043785,2.28011326,2077.5,2076.9,0.60628823]
[1772771044283,0.001,2077.5,2077.1,0.60138104]
[1772771047015,0.001,2077.5,2077.3,0.59399645]
[1772771047298,0.001,2078.1,2077.4,0.59299645]
[1772771047877,0.78611326,2078.1,2077.4,0.59299645]
[1772771049382,0.78611326,2078.1,2077.5,1.80292068]
[1772771049899,0.78611326,2078.1,2077.6,0.59706698]
[1772771051594,0.001,2077.9,2077.7,1.7953653]
[1772771051924,0.001,2077.9,2077.8,0.59211171]
[1772771052072,1.20389514,2078.4,2077.8,0.59211171]
[1772771052073,0.001,2078.4,2077.8,0.59211171]
[1772771052487,0.78611326,2078.4,2077.8,0.59211171]
[1772771053725,2.27411326,2078.7,2077.9,1.20313778]
[1772771053908,0.001,2078.8,2078.0,0.58622568]
[1772771055796,0.001,2078.8,2078.2,0.58131306]
[1772771056277,0.001,2078.8,2078.1,1.20302199]
[1772771056278,0.78511326,2078.8,2078.1,1.20302199]
[1772771056523,0.78511326,2078.8,2078.1,1.78433505]
[1772771056719,0.78511326,2078.8,2077.7,0.57884684]
[1772771057120,1.2025871,2078.9,2077.7,0.57884684]
[1772771057121,2.27011326,2078.7,2077.7,0.57884684]
[1772771057422,0.78511326,2078.7,2077.7,0.57884684]
[1772771057625,0.63667479,2078.7,2077.7,0.57884684]
[1772771057809,0.48823632,2078.7,2078.3,0.72485114]
[1772771058006,0.78511326,2078.6,2077.9,0.79438518]
[1772771059598,0.78511326,2078.7,2077.9,0.79438518]
[1772771059798,0.78511326,2078.7,2078.1,0.79438518]
[1772771061929,0.78511326,2078.7,2078.2,1.99734928]
[1772771062230,0.78511326,2078.6,2078.2,1.2029641]
[1772771062435,0.78511326,2078.6,2078.1,1.20298571]
[1772771063237,0.78511326,2078.6,2077.9,1.20308272]
[1772771063415,0.78511326,2078.6,2078.3,0.0011]
[1772771064126,0.78511326,2078.4,2078.3,0.0011]
[1772771064937,0.001,2078.5,2078.3,0.0011]
[1772771065519,0.78611326,2078.5,2078.3,0.0011]
[1772771070140,0.74809738,2078.4,2078.3,0.0011]
[1772771072455,0.001,2078.5,2078.3,0.0011]
[1772771072619,1.33356153,2078.6,2078.4,0.70391479]
[1772771072811,0.29449224,2078.6,2078.4,0.70391479]
[1772771073010,2.23009738,2078.8,2078.4,0.70391479]
[1772771073322,1.18512306,2078.8,2078.5,1.90670526]
[1772771073524,0.59136918,2078.8,2078.6,0.70391479]
[1772771073724,2.23009738,2079.0,2078.6,0.70391479]
[1772771074337,0.74809738,2079.0,2078.6,0.70391479]
[1772771074509,2.23009738,2079.0,2078.6,0.70391479]
[1772771075326,0.74809738,2079.0,2078.7,1.90658953]
[1772771075644,2.23109738,2079.1,2078.7,1.20267474]
[1772771075819,2.23109738,2079.1,2078.6,1.20272425]
[1772771075820,0.74809738,2079.0,2078.6,1.20272425]
[1772771076335,0.74809738,2079.0,2078.5,1.90666842]
[1772771076532,0.74809738,2079.0,2078.5,0.0011]
[1772771076726,0.74809738,2078.7,2078.5,0.0011]
[1772771080441,0.001,2078.8,2078.5,0.0011]
[1772771080641,0.74809738,2078.7,2078.5,0.0011]
[1772771081219,0.74809738,2078.7,2078.3,0.0011]
[1772771081844,0.74809738,2078.7,2078.3,0.70501479]
[1772771082423,0.74809738,2078.7,2078.3,1.90789339]
[1772771083852,1.95077381,2078.7,2078.3,1.90789339]
[1772771085551,1.95077381,2078.7,2078.4,0.70391479]
[1772771089048,0.74809738,2078.7,2078.4,0.70391479]
[1772771089557,0.74809738,2078.7,2078.5,0.0011]
[1772771089758,0.001,2078.6,2078.5,0.0011]
[1772771090161,0.001,2078.8,2078.5,0.0011]
[1772771090368,2.23409738,2079.1,2078.8,0.70391479]
[1772771091040,4.80917245,2079.4,2079.0,0.70391479]
[1772771091041,0.74809738,2079.4,2079.0,0.70391479]
[1772771091235,1.20309857,2079.7,2079.1,0.70391479]
[1772771091462,2.18389977,2079.8,2079.0,0.70391479]
[1772771091835,4.80724169,2080.2,2079.0,0.70391479]
[1772771091836,0.03048533,2080.2,2079.9,0.70391479]
[1772771092058,0.77858271,2080.2,2079.2,0.70391479]
[1772771092246,0.74809738,2080.1,2079.2,0.70391479]
[1772771093272,1.94996315,2080.1,2079.4,0.70391479]
[1772771093433,0.74809738,2080.0,2079.4,0.70391479]
[1772771094363,0.03048533,2079.9,2079.4,0.70391479]
[1772771095670,1.23246648,2079.9,2079.4,1.9061449]
[1772771095965,0.03048533,2079.9,2079.5,0.70391479]
[1772771096333,1.2324699,2079.9,2079.5,0.70391479]
[1772771097259,0.03048533,2079.9,2079.5,0.70391479]
[1772771097765,1.23246766,2079.9,2079.5,0.70391479]
[1772771099939,0.76991128,2079.8,2079.3,1.99231014]
[1772771100140,0.76991128,2079.8,2079.3,0.79000438]
[1772771100659,0.76991128,2079.8,2079.1,1.9924204]
[1772771100861,0.76991128,2079.8,2079.1,0.79000438]
[1772771101039,0.76991128,2079.8,2079.1,1.992435]
[1772771101234,0.76991128,2079.8,2079.2,0.79000438]
[1772771101939,0.76991128,2079.8,2078.9,5.30644546]
[1772771101940,0.76991128,2079.6,2079.0,0.79000438]
[1772771102141,0.76991128,2079.5,2078.9,0.49632118]
[1772771103139,0.76991128,2079.5,2078.9,1e-08]
[1772771103361,0.76991128,2079.3,2078.6,0.0011]
[1772771103567,0.76991128,2079.3,2078.6,1.99381047]
[1772771103754,0.03048533,2079.4,2078.6,0.0011]
[1772771103755,0.76991128,2079.1,2078.6,0.0011]
[1772771104065,0.76991128,2078.9,2078.6,0.0011]
[1772771106649,1.20261689,2078.8,2078.6,0.0011]
[1772771106840,1.23310222,2078.8,2078.6,0.0011]
[1772771107043,0.03048533,2078.8,2078.6,0.0011]
[1772771107953,0.80039661,2078.8,2078.6,0.0011]
[1772771109241,2.00303203,2078.8,2078.6,0.0011]
[1772771112587,2.00303203,2078.8,2078.5,0.0011]
[1772771112588,0.76991128,2078.7,2078.5,0.0011]
[1772771113375,1.2027326,2078.6,2078.5,0.0011]
[1772771114301,1.97241248,2079.0,2078.5,0.79110438]
[1772771114484,1.487,2078.8,2078.5,0.79110438]
[1772771114876,1.487,2078.8,2078.7,0.0011]
[1772771115889,0.02938533,2078.7,2078.5,0.79110438]
[1772771117279,1.23206664,2078.7,2078.5,0.79110438]
[1772771117479,0.02938533,2078.7,2078.5,0.79110438]
[1772771118071,1.23207269,2078.7,2078.5,0.79110438]
[1772771118400,0.02938533,2078.7,2078.5,0.79110438]
[1772771118770,1.23206677,2078.7,2078.5,0.79110438]
[1772771121997,2.00197805,2078.7,2078.5,0.0011]
[1772771122207,2.00197805,2078.7,2078.4,0.0011]
[1772771122389,0.76991128,2078.6,2078.4,0.0011]
[1772771123093,1.20279047,2078.5,2078.4,0.0011]
[1772771124483,4.81081328,2078.7,2078.4,0.0011]
[1772771124683,5.58072456,2078.7,2078.4,0.0011]
[1772771125102,1.97258602,2078.7,2078.4,0.79110438]
[1772771125295,2.69067474,2078.7,2078.4,0.76171905]
[1772771126509,1.20267474,2078.7,2078.4,0.76171905]
[1772771126804,2.25791128,2079.1,2078.4,0.76171905]
[1772771127169,2.25791128,2079.1,2078.3,1.20400443]
[1772771127170,1.97241248,2079.0,2078.6,0.79000438]
[1772771127369,1.97241248,2079.0,2078.6,0.79110438]
[1772771129397,2.6913277,2079.3,2078.7,0.77020789]
[1772771129979,1.489,2079.3,2078.7,0.77020789]
[1772771130706,0.82876214,2079.2,2078.4,0.0011]
[1772771131085,0.82876214,2079.2,2078.4,0.78137669]
[1772771131615,0.82876214,2079.0,2078.4,0.0011]
[1772771132310,0.82876214,2079.0,2078.4,0.78137669]
[1772771132719,2.0312055,2079.1,2078.5,0.78027669]
[1772771132913,1.489,2079.0,2078.5,0.78027669]
[1772771133289,0.82876214,2079.1,2078.5,0.78027669]
[1772771133612,0.001,2079.7,2078.7,0.78027669]
[1772771133613,0.82876214,2079.5,2078.7,0.78027669]
[1772771133781,1.49,2079.3,2078.7,0.78027669]
[1772771133981,2.31876214,2079.3,2078.7,0.78027669]
[1772771135712,1.20238553,2079.2,2078.7,0.78027669]
[1772771137283,0.82876214,2079.1,2078.7,0.78027669]
[1772771138485,1.20243445,2079.2,2078.8,0.78027669]
[1772771138788,1.20238553,2079.2,2078.8,0.78027669]
[1772771139413,3.52105956,2079.4,2078.8,0.78027669]
[1772771139606,0.82876214,2079.3,2078.8,0.78027669]
[1772771140084,0.001,2079.0,2078.8,0.78027669]
[1772771140485,0.82976214,2079.0,2078.6,0.0011]
[1772771141616,0.82976214,2079.0,2078.6,1.98410695]
[1772771141917,0.82976214,2079.0,2078.6,0.78137669]
[1772771142314,0.82976214,2079.0,2078.7,0.78027669]
[1772771142315,0.001,2079.0,2078.7,0.78027669]
[1772771145416,0.82976214,2079.0,2078.6,0.0011]
[1772771146719,0.82876214,2078.9,2078.6,0.0011]
[1772771148814,0.82876214,2078.8,2078.6,0.0011]
[1772771149192,2.03230824,2079.0,2078.6,0.0011]
[1772771149393,0.82976214,2079.0,2078.6,0.78137669]
[1772771149612,3.52326641,2079.0,2078.6,0.78137669]
[1772771149812,2.32076214,2079.0,2078.6,0.78137669]
[1772771150014,3.5232675,2079.0,2078.6,0.78137669]
[1772771151633,3.5232675,2079.0,2078.8,0.0011]
[1772771152203,2.32076214,2079.0,2078.8,0.0011]
[1772771152409,3.5232676,2079.0,2078.8,0.0011]
[1772771155235,2.32076214,2079.0,2078.8,0.0011]
[1772771155536,3.52326895,2079.0,2078.8,0.0011]
[1772771156433,0.82876214,2078.9,2078.5,0.0011]
[1772771157009,2.6945015,2079.0,2078.6,0.78027669]
[1772771157325,1.492,2079.0,2078.6,0.78027669]
[1772771158645,2.69450873,2079.0,2078.7,0.78027669]
[1772771160551,0.001,2079.0,2078.7,0.78027669]
[1772771160715,0.001,2079.0,2078.8,0.72180589]
[1772771161750,3.46497659,2079.6,2078.8,0.72180589]
[1772771162053,0.001,2079.6,2078.8,0.72180589]
[1772771162214,0.001,2079.6,2078.9,0.72180589]
[1772771162941,0.001,2079.6,2079.1,0.72180589]
[1772771163351,0.7707812,2079.6,2079.1,0.72180589]
[1772771166031,1.20221207,2079.5,2079.1,0.72180589]
[1772771166257,1.97199327,2079.5,2079.1,0.72180589]
[1772771167260,0.7697812,2079.5,2079.1,1.92424389]
[1772771168129,1.97199572,2079.5,2079.1,1.92424389]
[1772771168757,1.97199572,2079.5,2079.1,1.202438]
[1772771168969,1.97199572,2079.5,2079.2,0.72180589]
[1772771169551,0.7697812,2079.4,2078.9,0.72180589]
[1772771170939,0.7697812,2079.4,2079.0,0.72180589]
[1772771171233,1.97201884,2079.5,2079.0,0.72180589]
[1772771171579,0.7697812,2079.4,2079.0,0.72180589]
[1772771171781,1.97201884,2079.5,2079.0,0.72180589]
[1772771173587,0.7697812,2079.4,2078.9,0.72180589]
[1772771175366,1.9721089,2079.3,2078.9,0.72180589]
[1772771175570,0.7697812,2079.3,2078.9,1.92436238]
[1772771175970,1.20231503,2079.4,2079.0,0.72180589]
[1772771176174,1.20231503,2079.4,2079.0,0.72290589]
[1772771176369,0.001,2079.3,2079.0,0.72290589]
[1772771177863,0.7707812,2079.3,2079.0,0.72290589]
[1772771178361,0.7707812,2079.3,2079.0,0.0011]
[1772771178702,0.7697812,2079.2,2079.0,0.0011]
[1772771180091,1.97222456,2079.1,2079.0,0.0011]
[1772771181088,0.7697812,2079.1,2079.0,0.0011]
[1772771182304,0.7697812,2079.0,2078.8,0.0011]
[1772771184484,1.97228723,2079.0,2078.8,0.0011]
[1772771185904,0.7697812,2078.9,2078.5,0.0011]
[1772771186110,0.7697812,2078.9,2078.5,0.72290589]
[1772771186111,1.494,2078.8,2078.5,0.72290589]
[1772771186413,0.7697812,2078.7,2078.3,0.0011]
[1772771186570,0.7697812,2078.5,2078.3,0.0011]
[1772771187991,0.7697812,2078.5,2078.0,0.0011]
[1772771188791,0.7697812,2078.3,2078.0,0.0011]
[1772771188995,0.7697812,2078.1,2078.0,0.0011]
[1772771191322,1.97280319,2078.1,2078.0,0.0011]
[1772771194201,1.5,2078.1,2078.0,0.74677942]
[1772771194792,1.5,2078.1,2078.0,0.0011]
[1772771195631,1.2029641,2078.2,2078.0,0.0011]
[1772771195836,0.73930211,2078.0,2077.8,0.0011]
[1772771197952,1.20313778,2077.9,2077.8,0.0011]
[1772771198306,1.94242783,2078.0,2077.8,0.0011]
[1772771198912,0.73930211,2077.9,2077.8,0.0011]
[1772771199138,0.73930211,2077.9,2077.2,1.20352118]
[1772771199324,0.73930211,2077.9,2077.3,0.74567942]
[1772771199841,1.20319568,2077.8,2077.3,0.74567942]
[1772771200015,1.20319568,2077.8,2077.3,1.20347823]
[1772771200209,1.20319568,2077.8,2077.1,1.20468674]
[1772771200438,1.20319568,2077.8,2077.2,0.74567942]
[1772771200439,0.73930211,2077.7,2077.2,0.74567942]
[1772771201023,1.505,2077.6,2077.2,0.74567942]
[1772771201355,1.505,2077.6,2077.5,0.0011]
[1772771201840,1.505,2077.6,2077.5,0.74677942]
[1772771204358,1.506,2077.8,2077.6,0.74567942]
[1772771204556,1.506,2077.8,2077.5,0.0011]
[1772771204857,2.24530211,2077.8,2077.5,0.0011]
[1772771205039,0.73930211,2077.7,2077.5,0.0011]
[1772771205238,1.506,2077.8,2077.5,0.0011]
[1772771206249,2.70924532,2077.8,2077.5,0.0011]
[1772771207247,3.44854743,2077.8,2077.5,0.0011]
[1772771207656,0.73930211,2077.7,2077.5,0.0011]
[1772771208156,0.73930211,2077.7,2077.1,0.74677942]
[1772771208352,1.94261362,2077.6,2077.2,0.74567942]
[1772771208530,1.20329417,2077.7,2077.2,0.74567942]
[1772771208850,1.508,2077.6,2077.2,0.74567942]
[1772771210653,1.508,2077.6,2077.3,1.20348529]
[1772771210825,1.508,2077.6,2077.4,0.74567942]
[1772771211247,1.508,2077.6,2077.1,0.0011]
[1772771211248,0.73930211,2077.5,2077.1,0.0011]
[1772771211936,0.73930211,2077.5,2077.1,0.74677942]
[1772771212248,1.51,2077.4,2077.1,0.74677942]
[1772771212456,0.73930211,2077.3,2077.1,0.0011]
[1772771212664,1.20354323,2077.2,2077.1,0.0011]
[1772771213160,1.9428332,2077.3,2077.1,0.0011]
[1772771218031,1.9428332,2077.3,2076.9,0.0011]
[1772771218358,0.73930211,2077.2,2076.9,0.0011]
[1772771219460,1.20353109,2077.3,2076.9,0.74677942]
[1772771219461,1.513,2077.3,2076.9,0.74677942]
[1772771219958,1.513,2077.3,2077.0,0.69990466]
[1772771220938,1.513,2077.4,2077.0,0.69990466]
[1772771222739,1.20348529,2077.3,2077.0,0.69990466]
[1772771222946,1.91651682,2077.3,2076.9,0.0011]
[1772771223262,0.71303153,2077.2,2076.9,0.0011]
[1772771223564,3.42949246,2077.4,2076.9,0.0011]
[1772771223753,1.514,2077.4,2077.0,0.69990466]
[1772771223952,1.515,2077.5,2077.0,0.69990466]
[1772771224350,2.22803153,2077.5,2077.0,0.69990466]
[1772771224551,0.71303153,2077.4,2076.9,0.0011]
[1772771224967,1.91651682,2077.3,2076.9,0.0011]